bitfinex/quotes_ETHUSD_20250909
["timestamp","ask_amount","ask_price","bid_price","bid_amount"]
[1757441801040,1.75544001,4286.9,4286.8,0.002]
[1757441802319,4.08812796,4286.9,4286.8,0.002]
[1757441802755,12.81625422,4286.9,4286.8,0.002]
[1757441804665,1.75544001,4286.9,4286.8,0.002]
[1757441804872,5.65344001,4286.9,4286.8,0.002]
[1757441805033,4.67480001,4286.9,4286.8,0.002]
[1757441805235,5.25540001,4286.9,4286.8,0.002]
[1757441807987,4.79080001,4286.9,4286.8,0.002]
[1757441808364,4.33170001,4286.9,4286.8,0.002]
[1757441809391,0.00100001,4286.9,4286.8,0.002]
[1757441809579,3.90000001,4286.9,4286.8,2.65134237]
[1757441809752,4.19010001,4286.9,4286.8,0.002]
[1757441810096,5.59042001,4286.9,4286.8,0.002]
[1757441810386,5.70642001,4286.9,4286.8,0.002]
[1757441812055,8.03910796,4286.9,4286.8,0.002]
[1757441823020,16.76723422,4286.9,4286.8,0.002]
[1757441823180,19.76723422,4286.9,4286.8,0.002]
[1757441823379,3.12479679,4286.7,4286.6,0.002]
[1757441823676,7.23883189,4286.7,4286.6,0.002]
[1757441823879,8.94730234,4286.7,4286.6,0.002]
[1757441824627,8.15530234,4286.7,4286.6,0.002]
[1757441824780,7.43489679,4286.7,4286.6,0.002]
[1757441825102,9.10140373,4286.7,4286.6,0.002]
[1757441826718,8.67090373,4286.7,4286.6,0.002]
[1757441826933,9.31936009,4286.7,4286.6,0.002]
[1757441827787,8.67090373,4286.7,4286.6,0.002]
[1757441828397,16.04732735,4286.7,4286.6,0.002]
[1757441829050,16.47782735,4286.7,4286.6,0.002]
[1757441829385,1.66650694,4286.7,4286.6,0.7424]
[1757441829588,0.09337624,4286.8,4286.6,1.2106]
[1757441829826,0.09337624,4286.8,4286.7,3.23289679]
[1757441830117,3.894,4286.8,4286.7,3.23289679]
[1757441830323,3.894,4286.8,4286.7,1.2086]
[1757441831305,3.894,4286.8,4286.7,3.54139679]
[1757441833103,3.894,4286.8,4286.7,1.2086]
[1757441833750,3.894,4286.8,4286.7,0.3085]
[1757441833909,3.894,4286.8,4286.7,0.7404]
[1757441834108,3.894,4286.8,4286.7,1.2086]
[1757441835584,2.33279679,4286.7,4286.6,0.002]
[1757441835859,6.23439679,4286.7,4286.6,0.002]
[1757441836063,6.53889679,4286.7,4286.6,0.002]
[1757441836376,6.75683619,4286.7,4286.6,0.002]
[1757441836536,9.35738624,4286.7,4286.6,0.002]
[1757441842090,8.92688624,4286.7,4286.6,0.002]
[1757441842293,8.20678262,4286.7,4286.6,0.002]
[1757441842604,8.63728262,4286.7,4286.6,0.002]
[1757441843116,9.42928262,4286.7,4286.6,0.002]
[1757441843412,2.33301448,4286.3,4286.2,0.002]
[1757441843711,18.26969076,4286.3,4286.2,0.002]
[1757441843864,19.47579076,4286.3,4286.2,0.002]
[1757441844064,19.56918335,4286.3,4286.2,0.002]
[1757441845785,19.68527814,4286.3,4286.2,0.002]
[1757441845990,19.56918335,4286.3,4286.2,0.002]
[1757441847007,22.02418335,4286.3,4286.2,0.002]
[1757441847324,19.56918335,4286.3,4286.2,0.002]
[1757441849930,22.81618335,4286.3,4286.2,0.002]
[1757441850128,23.53576826,4286.3,4286.2,0.002]
[1757441852329,23.03397356,4286.3,4286.2,0.002]
[1757441853410,22.81618335,4286.3,4286.2,0.002]
[1757441857528,24.21718335,4286.3,4286.2,0.002]
[1757441858355,31.5970963,4286.3,4286.2,0.002]
[1757441861363,32.31676022,4286.3,4286.2,0.002]
[1757441866244,5.33328666,4285.8,4285.7,0.002]
[1757441866443,17.55987234,4285.8,4285.7,0.002]
[1757441866691,18.84962238,4285.8,4285.7,0.002]
[1757441866844,19.34082238,4285.8,4285.7,0.002]
[1757441867245,19.81132238,4285.8,4285.7,0.002]
[1757441869176,20.02976862,4285.8,4285.7,0.002]
[1757441870349,19.53856862,4285.8,4285.7,0.002]
[1757441870945,19.06806862,4285.8,4285.7,0.002]
[1757441871678,18.57406862,4285.8,4285.7,0.002]
[1757441872344,18.57506862,4285.8,4285.7,0.002]
[1757441872681,18.28116862,4285.8,4285.7,0.002]
[1757441873264,18.57506862,4285.8,4285.7,0.002]
[1757441875754,18.28116862,4285.8,4285.7,0.002]
[1757441875978,25.40116862,4285.8,4285.7,0.002]
[1757441876384,25.69506862,4285.8,4285.7,0.002]
[1757441877584,27.09606862,4285.8,4285.7,0.002]
[1757441877750,25.69506862,4285.8,4285.7,0.002]
[1757441879183,18.31515567,4285.8,4285.7,0.002]
[1757441879490,25.69506862,4285.8,4285.7,0.002]
[1757441880756,25.40116862,4285.8,4285.7,0.002]
[1757441880950,25.40116862,4285.8,4285.7,0.2974]
[1757441881163,25.40116862,4285.8,4285.7,0.7294]
[1757441881492,25.40116862,4285.8,4285.7,0.2974]
[1757441882154,25.40116862,4285.8,4285.7,0.002]
[1757441888968,25.68728389,4285.8,4285.7,0.002]
[1757441890405,27.04808383,4285.8,4285.7,0.002]
[1757441890607,2.33350445,4285.4,4285.3,0.002]
[1757441890813,8.44987984,4285.4,4285.3,0.002]
[1757441890966,8.44987984,4285.4,4285.3,0.3166]
[1757441892464,8.44987984,4285.4,4285.3,0.7527]
[1757441892984,14.05087984,4285.4,4285.3,1.2348]
[1757441893169,16.20240616,4285.4,4285.3,1.2348]
[1757441893964,15.98459228,4285.4,4285.3,1.2348]
[1757441894201,14.334916,4285.4,4285.3,1.2348]
[1757441895307,10.446916,4285.4,4285.3,1.2348]
[1757441895467,14.334916,4285.4,4285.3,1.2348]
[1757441896171,14.55362535,4285.4,4285.3,1.2348]
[1757441896367,8.3321209,4285.4,4285.3,1.2348]
[1757441896612,11.49956151,4285.4,4285.3,1.2348]
[1757441897274,11.281,4285.4,4285.3,1.2348]
[1757441897964,7.393,4285.4,4285.3,1.35848]
[1757441898167,11.281,4285.4,4285.3,1.35848]
[1757441898409,11.281,4285.4,4285.3,3.69203891]
[1757441899081,5.68,4285.4,4285.3,3.69203891]
[1757441902328,1.792,4285.4,4285.3,3.69203891]
[1757441902500,1.792,4285.4,4285.3,7.62337449]
[1757441902705,5.679,4285.4,4285.3,7.60003891]
[1757441903129,0.001,4285.8,4285.3,7.60003891]
[1757441903302,0.001,4285.8,4285.7,6.24134111]
[1757441903495,3.888,4285.8,4285.7,6.24134111]
[1757441903829,3.888,4285.8,4285.7,7.47414111]
[1757441907171,3.888,4285.8,4285.7,6.68214111]
[1757441909070,3.888,4285.8,4285.7,0.9127]
[1757441909280,3.888,4285.8,4285.7,1.3488]
[1757441909650,3.888,4285.8,4285.7,3.68214111]
[1757441910496,3.888,4285.8,4285.7,4.28370005]
[1757441910787,3.887,4285.8,4285.7,7.95970005]
[1757441910988,3.887,4285.8,4285.7,8.07570005]
[1757441918471,0.001,4285.8,4285.7,8.07570005]
[1757441918784,0.001,4286.3,4286.2,3.12506891]
[1757441918988,0.001,4286.3,4286.2,6.5535758]
[1757441919171,0.001,4286.3,4286.2,7.7912758]
[1757441926576,0.001,4286.3,4286.2,11.6762758]
[1757441933020,0.001,4286.3,4286.2,11.6752758]
[1757441934290,0.001,4286.3,4286.2,11.768593]
[1757441936832,0.001,4286.3,4286.2,7.418093]
[1757441936989,0.3141,4286.3,4286.2,5.854893]
[1757441937327,0.3141,4286.3,4286.2,9.738893]
[1757441937525,0.001,4286.3,4286.2,10.032593]
[1757441937691,0.001,4286.3,4286.2,11.291093]
[1757441937891,0.001,4286.3,4286.2,11.652593]
[1757441938088,0.001,4286.3,4286.2,11.768593]
[1757441944543,0.001,4286.3,4286.2,13.43876478]
[1757441945956,0.00100001,4286.9,4286.8,3.12474237]
[1757441946104,0.00100001,4286.9,4286.8,10.32121661]
[1757441946305,2.2743,4287.6,4287.5,6.12436151]
[1757441946506,1.2376,4287.6,4287.5,6.12436151]
[1757441946742,1.2376,4287.6,4287.5,6.24036151]
[1757441947107,1.2376,4287.6,4287.5,5.44836151]
[1757441947304,1.36786,4287.6,4286.3,3.884]
[1757441947535,6.6016,4287.5,4287.3,2.33246011]
[1757441947736,0.31,4287.4,4287.2,2.44851125]
[1757441947934,0.9276,4287.3,4287.2,0.116]
[1757441948104,1.2376,4287.3,4287.2,0.116]
[1757441948304,1.941786,4287.3,4286.1,0.002]
[1757441948505,2.057786,4287.3,4286.7,0.116]
[1757441948743,2.057786,4287.3,4286.7,2.44879043]
[1757441948942,1.93401601,4287.2,4286.7,2.44879043]
[1757441949141,0.31,4286.8,4286.7,0.116]
[1757441949403,0.31,4286.8,4286.1,0.002]
[1757441949640,6.6016,4286.7,4286.2,2.33306891]
[1757441949846,0.31,4286.3,4286.2,2.33306891]
[1757441950349,1.2376,4286.3,4286.1,0.002]
[1757441950523,1.2376,4286.3,4286.1,2.33511466]
[1757441950726,0.9276,4286.2,4286.1,2.33511466]
[1757441951044,1.2376,4286.2,4286.1,2.33511466]
[1757441951459,1.2376,4286.2,4286.1,0.002]
[1757441951958,1.2376,4286.2,4286.1,2.33512335]
[1757441952328,1.2376,4286.2,4286.1,0.002]
[1757441952511,1.36136,4286.2,4286.1,0.002]
[1757441952715,3.69442891,4286.2,4286.1,0.002]
[1757441953045,1.36136,4286.2,4286.1,0.002]
[1757441953248,3.69442891,4286.2,4286.1,0.002]
[1757441956850,7.57842891,4286.2,4286.1,0.002]
[1757441957556,2.33328666,4285.8,4285.7,0.002]
[1757441957767,17.09449971,4285.8,4285.7,0.002]
[1757441957922,21.33209971,4285.8,4285.7,0.002]
[1757441958653,21.42550299,4285.8,4285.7,0.002]
[1757441959013,14.05228994,4285.8,4285.7,0.002]
[1757441959219,16.44957332,4285.8,4285.7,0.002]
[1757441959653,16.35617004,4285.8,4285.7,0.002]
[1757441960552,14.02288338,4285.8,4285.7,0.002]
[1757441962146,10.13788338,4285.8,4285.7,0.002]
[1757441962479,11.699,4285.8,4285.7,0.002]
[1757441962626,11.389,4285.8,4285.7,2.62054111]
[1757441962823,11.389,4285.8,4285.7,2.33534111]
[1757441963322,1.791,4285.8,4285.7,3.52454111]
[1757441963563,5.676,4285.8,4285.7,7.902539]
[1757441965774,0.001,4286.3,4286.2,6.12506891]
[1757441966146,0.001,4286.3,4286.2,7.31426891]
[1757441966347,0.001,4286.3,4286.2,8.27901017]
[1757441966883,1.791,4287.4,4287.1,6.12457913]
[1757441967176,3.906,4287.2,4287.1,6.12457913]
[1757441967352,3.906,4287.2,4287.1,7.31377913]
[1757441967554,3.906,4287.2,4287.1,8.27842253]
[1757441971549,0.025,4287.8,4287.6,0.792]
[1757441971862,3.928,4287.8,4287.7,6.12425272]
[1757441972067,3.928,4287.8,4287.7,6.42015272]
[1757441972257,3.928,4287.8,4287.7,7.34785272]
[1757441972456,3.928,4287.8,4287.7,8.31587079]
[1757441973383,3.928,4287.8,4287.7,8.43187079]
[1757441974754,3.928,4287.8,4287.7,7.50417079]
[1757441974955,3.928,4287.8,4287.7,7.20827079]
[1757441975279,3.928,4287.8,4287.7,7.50417079]
[1757441976301,4.2343,4287.8,4287.7,7.20827079]
[1757441976500,4.2343,4287.8,4287.7,6.24025272]
[1757441977011,3.928,4287.8,4287.7,6.24025272]
[1757441977178,3.928,4287.8,4287.7,6.53615272]
[1757441979401,3.929,4287.8,4287.7,6.53615272]
[1757441980710,4.2353,4287.8,4287.7,6.24025272]
[1757441981389,3.929,4287.8,4287.7,6.24025272]
[1757441981584,4.2353,4287.8,4287.7,5.44825272]
[1757441981790,5.1549,4287.8,4287.7,2.44825272]
[1757441981985,4.7236,4287.8,4287.7,2.44825272]
[1757441982190,4.2353,4287.8,4287.7,2.44825272]
[1757441985322,5.1549,4287.8,4287.7,2.44825272]
[1757441985760,4.7236,4287.8,4287.7,2.44825272]
[1757441987121,5.1549,4287.8,4287.7,0.116]
[1757441987517,5.1549,4287.8,4287.7,2.44825272]
[1757441988128,5.1549,4287.8,4287.7,0.116]
[1757441988494,5.1549,4287.8,4287.7,2.44825272]
[1757441989117,3.929,4287.8,4287.7,2.44825272]
[1757441989424,4.2353,4287.8,4287.7,2.44825272]
[1757441992502,4.2353,4287.8,4287.7,0.116]
[1757441992706,6.76153,4287.8,4287.1,2.33257336]
[1757441992910,0.9196,4287.7,4287.4,2.33241505]
[1757441993111,0.3063,4287.5,4287.4,2.33241505]
[1757441994308,0.3063,4287.5,4287.3,0.116]
[1757441994534,3.893,4287.4,4287.3,2.44847031]
[1757441994736,4.1993,4287.4,4287.3,2.44847031]
[1757441995127,3.893,4287.4,4287.3,2.44847031]
[1757441996266,3.893,4287.4,4287.3,5.44847031]
[1757441996557,3.893,4287.4,4287.3,5.74437031]
[1757442000064,3.893,4287.4,4287.3,5.44847031]
[1757442001163,3.893,4287.4,4287.3,3.116]
[1757442001365,4.1993,4287.4,4287.3,3.116]
[1757442001564,4.6876,4287.4,4287.3,3.116]
[1757442002059,4.6876,4287.4,4287.3,5.44847031]
[1757442002266,4.1993,4287.4,4287.3,5.44847031]
[1757442002670,3.893,4287.4,4287.3,5.44847031]
[1757442002985,0.026,4287.8,4287.7,2.33225272]
[1757442003147,3.916,4287.8,4287.7,6.12425272]
[1757442003334,3.916,4287.8,4287.7,7.44125272]
[1757442003961,0.026,4287.8,4287.7,7.44125272]
[1757442009966,5.1484,4287.8,4287.7,5.44825272]
[1757442010360,4.6914,4287.8,4287.7,5.44825272]
[1757442010561,4.2134,4287.8,4287.7,5.44825272]
[1757442010881,5.1484,4287.8,4287.6,2.33226783]
[1757442011087,4.2134,4287.8,4287.4,0.116]
[1757442011317,0.935,4287.7,4287.4,0.116]
[1757442011616,3.889,4287.6,4287.3,2.3324681]
[1757442011913,0.2984,4287.4,4287.2,2.33250781]
[1757442012061,3.889,4287.3,4287.1,2.45056151]
[1757442012356,3.889,4287.3,4287.1,0.118]
[1757442012560,3.0234,4287.2,4287.1,0.002]
[1757442014889,1.79,4287.2,4287.1,2.63047913]
[1757442015090,5.679,4287.2,4287.1,3.18697913]
[1757442015294,5.679,4287.2,4287.1,3.73894477]
[1757442017004,5.679,4287.2,4287.1,3.18697913]
[1757442017222,5.679,4287.2,4287.1,2.45057913]
[1757442017988,5.9774,4287.2,4287.1,2.45057913]
[1757442019598,5.9774,4287.2,4287.1,0.118]
[1757442020134,5.9774,4287.2,4287.1,2.45057913]
[1757442020732,5.679,4287.2,4287.1,2.74647913]
[1757442021438,5.679,4287.2,4287.1,2.45057913]
[1757442021739,5.679,4287.2,4287.1,2.74647913]
[1757442022321,5.679,4287.2,4287.1,3.18697913]
[1757442023124,5.679,4287.2,4287.1,3.65157913]
[1757442024442,5.679,4287.2,4287.1,3.18697913]
[1757442024856,5.679,4287.2,4287.1,2.74647913]
[1757442025556,5.679,4287.2,4287.1,2.45057913]
[1757442026468,5.679,4287.2,4287.1,2.74647913]
[1757442026862,1.79,4287.2,4287.1,2.74647913]
[1757442027022,5.675,4287.2,4287.1,3.18697913]
[1757442027754,5.675,4287.2,4287.1,3.65157913]
[1757442027922,5.675,4287.2,4287.1,3.18697913]
[1757442029675,0.001,4287.4,4287.3,3.12447031]
[1757442029965,0.001,4287.4,4287.3,6.12447031]
[1757442030171,0.001,4287.4,4287.3,7.32547031]
[1757442033274,0.001,4287.4,4287.3,11.32647031]
[1757442033839,1e-08,4287.9,4287.7,3.12425272]
[1757442034151,0.00100001,4287.9,4287.8,5.33219833]
[1757442034471,0.00100001,4287.9,4287.8,6.66869833]
[1757442034634,0.00100001,4287.9,4287.8,7.46069833]
[1757442034836,0.00100001,4287.9,4287.8,9.06172587]
[1757442036051,0.00100001,4287.9,4287.8,8.59992587]
[1757442036264,4.19540001,4287.9,4287.8,7.84122587]
[1757442036575,3.88600001,4287.9,4287.8,6.54509833]
[1757442038368,4.19540001,4287.9,4287.8,6.24019833]
[1757442038657,5.12050001,4287.9,4287.8,5.44819833]
[1757442039145,4.64730001,4287.9,4287.8,5.44819833]
[1757442040216,5.12050001,4287.9,4287.8,0.116]
[1757442040420,5.12050001,4287.9,4287.5,0.116]
[1757442040421,8.37523001,4287.9,4287.5,0.116]
[1757442040715,0.9251,4287.8,4287.7,2.33224814]
[1757442041053,1.2345,4287.8,4287.6,2.33229909]
[1757442041250,4.8101,4287.7,4287.6,2.33229909]
[1757442041455,5.1195,4287.7,4287.6,2.33229909]
[1757442041681,5.1195,4287.7,4287.5,0.116]
[1757442041896,6.81055,4287.7,4287.1,0.002]
[1757442042186,5.1195,4287.7,4287.3,0.116]
[1757442042391,5.1195,4287.7,4287.3,2.44845761]
[1757442042580,0.9251,4287.6,4287.3,2.44845761]
[1757442042776,4.8101,4287.5,4287.4,2.33241591]
[1757442042978,5.1195,4287.5,4287.4,2.33241591]
[1757442044497,5.1195,4287.5,4287.3,0.116]
[1757442044712,4.1944,4287.5,4287.4,2.33241591]
[1757442045495,5.1195,4287.5,4287.4,2.33241591]
[1757442046168,5.1195,4287.5,4287.3,0.116]
[1757442046498,0.9251,4287.4,4287.3,2.44847031]
[1757442046896,1.2345,4287.4,4287.3,2.44847031]
[1757442047198,0.7613,4287.4,4287.3,2.44847031]
[1757442047397,1.2345,4287.4,4287.3,0.116]
[1757442047583,1.69913,4287.4,4287.1,0.002]
[1757442047789,4.8101,4287.3,4287.1,0.002]
[1757442048174,0.7826,4287.2,4287.1,0.002]
[1757442048401,1.535273,4287.2,4287.1,0.002]
[1757442048570,1.987173,4287.2,4287.1,0.002]
[1757442049396,4.31969772,4287.2,4287.1,0.002]
[1757442049702,1.987173,4287.2,4287.1,0.002]
[1757442049864,4.31969772,4287.2,4287.1,0.002]
[1757442058101,1.987173,4287.2,4287.1,0.002]
[1757442058535,4.31969772,4287.2,4287.1,0.002]
[1757442061128,3.84649772,4287.2,4287.1,0.002]
[1757442061313,1.062073,4287.2,4287.1,0.002]
[1757442061639,0.116,4287.2,4287.1,0.002]
[1757442061841,0.116,4287.2,4287.1,0.3156]
[1757442062344,0.116,4287.2,4287.1,0.002]
[1757442062345,0.4171,4287.2,4287.1,0.002]
[1757442063708,0.116,4287.2,4287.1,0.002]
[1757442064809,0.116,4287.2,4287.1,0.3156]
[1757442065133,4.002,4287.2,4287.1,0.3156]
[1757442066217,3.886,4287.2,4287.1,3.61267913]
[1757442066417,3.886,4287.2,4287.1,7.04279339]
[1757442066825,3.886,4287.2,4287.1,7.83479339]
[1757442068651,1.79100001,4287.9,4287.8,2.33219833]
[1757442068827,5.67700001,4287.9,4287.8,2.64579833]
[1757442069731,5.67700001,4287.9,4287.8,0.3136]
[1757442069936,5.67700001,4287.9,4287.6,0.116]
[1757442070131,5.67700001,4287.9,4287.8,0.3136]
[1757442070539,5.67700001,4287.9,4287.6,0.41050212]
[1757442070975,5.67700001,4287.9,4287.6,2.74278487]
[1757442071147,5.67700001,4287.9,4287.7,2.332243]
[1757442071348,5.67700001,4287.9,4287.6,0.116]
[1757442071749,5.67700001,4287.9,4287.1,0.31611426]
[1757442071750,0.3011,4287.7,4287.1,0.31611426]
[1757442071955,3.886,4287.6,4287.2,0.116]
[1757442072150,0.3011,4287.3,4287.2,0.116]
[1757442072351,4.1871,4287.3,4287.2,0.116]
[1757442072966,3.886,4287.3,4287.2,2.44852472]
[1757442073166,3.886,4287.3,4287.2,3.23002472]
[1757442074576,1.79100001,4287.9,4287.7,2.33223626]
[1757442074785,1.79100001,4287.9,4287.8,0.3136]
[1757442074984,5.67700001,4287.9,4287.8,0.3136]
[1757442075373,5.67700001,4287.9,4287.8,2.64579833]
[1757442076372,5.67700001,4287.9,4287.8,0.3136]
[1757442077663,5.67700001,4287.9,4287.8,2.64579833]
[1757442077860,1.79100001,4287.9,4287.8,3.61029833]
[1757442078090,5.67600001,4287.9,4287.8,4.32055862]
[1757442079596,5.67600001,4287.9,4287.8,3.72629833]
[1757442079789,5.67600001,4287.9,4287.8,3.22969833]
[1757442080567,5.67600001,4287.9,4287.8,3.72629833]
[1757442085332,0.00100001,4287.9,4287.8,7.51829833]
[1757442085647,0.00100001,4287.9,4287.8,8.38969087]
[1757442085800,0.00100001,4287.9,4287.8,12.27469087]
[1757442087096,0.00100001,4287.9,4287.8,12.27669087]
[1757442088841,7.21891584,4288.0,4287.9,6.12414393]
[1757442088998,7.21891584,4288.0,4287.9,7.88822406]
[1757442089334,7.21891584,4288.0,4287.9,9.16632406]
[1757442089637,7.21891584,4288.0,4287.9,9.865986]
[1757442090692,2.17812923,4288.0,4287.9,8.587886]
[1757442091031,2.17812923,4288.0,4287.9,8.20182406]
[1757442091328,2.17812923,4288.0,4287.9,8.66972406]
[1757442091532,2.47922923,4288.0,4287.9,7.09622406]
[1757442091833,2.47922923,4288.0,4287.9,6.43164393]
[1757442091834,2.17812923,4288.0,4287.9,6.43164393]
[1757442092021,2.47632923,4288.0,4287.9,6.12414393]
[1757442092210,2.47632923,4288.0,4287.9,2.33214393]
[1757442093572,2.47632923,4288.0,4287.9,3.09877816]
[1757442094737,2.17812923,4288.0,4287.9,6.40627816]
[1757442095355,2.17812923,4288.0,4287.9,6.52227816]
[1757442095776,2.17812923,4288.0,4287.9,6.98927816]
[1757442096847,2.17812923,4288.0,4287.9,8.26487816]
[1757442097046,6.06212923,4288.0,4287.9,7.78127816]
[1757442097551,2.17812923,4288.0,4287.9,7.78127816]
[1757442097751,2.17812923,4288.0,4287.9,8.26487816]
[1757442098746,2.17812923,4288.0,4287.9,7.31427816]
[1757442100389,2.17812923,4288.0,4287.9,7.00677816]
[1757442101302,2.17812923,4288.0,4287.9,7.78127816]
[1757442101987,2.17812923,4288.0,4287.9,8.26487816]
[1757442103796,2.17812923,4288.0,4287.9,7.78127816]
[1757442103976,2.17812923,4288.0,4287.9,8.26487816]
[1757442105636,2.17812923,4288.0,4287.9,7.78127816]
[1757442106187,2.17912923,4288.0,4287.9,7.31427816]
[1757442106383,2.17912923,4288.0,4287.9,7.00677816]
[1757442107929,2.94862923,4288.0,4287.9,7.00677816]
[1757442108117,2.47732923,4288.0,4287.9,6.24014393]
[1757442108320,2.17912923,4288.0,4287.9,6.24014393]
[1757442108903,2.17912923,4288.0,4287.9,6.54764393]
[1757442109091,6.06312923,4288.0,4287.9,6.24014393]
[1757442109642,6.36132923,4288.0,4287.9,6.24014393]
[1757442110339,6.36132923,4288.0,4287.9,7.48597816]
[1757442111564,6.06312923,4288.0,4287.9,7.48597816]
[1757442111884,6.36132923,4288.0,4287.9,7.48597816]
[1757442113352,6.36132923,4288.0,4287.9,6.24014393]
[1757442114536,7.27662923,4288.0,4287.9,6.24014393]
[1757442114966,7.27662923,4288.0,4287.9,5.44814393]
[1757442115773,7.27662923,4288.0,4287.9,0.116]
[1757442116181,7.27662923,4288.0,4287.8,0.002]
[1757442116391,7.56039215,4288.0,4287.9,2.33214393]
[1757442116577,7.56039215,4288.0,4287.8,0.002]
[1757442116578,8.00439215,4288.0,4287.8,0.002]
[1757442116906,0.444,4287.9,4287.8,0.002]
[1757442117069,0.444,4287.9,4287.8,2.33419833]
[1757442117265,0.7422,4287.9,4287.8,2.33419833]
[1757442117504,1.2135,4287.9,4287.8,2.33419833]
[1757442118007,1.2135,4287.9,4287.8,0.002]
[1757442118162,1.2135,4287.9,4287.8,2.33419833]
[1757442119368,1.94116292,4287.9,4287.8,0.002]
[1757442122706,1.93866292,4287.9,4287.8,0.002]
[1757442124211,1.93866292,4287.9,4287.8,2.33419833]
[1757442124520,1.211,4287.9,4287.8,2.33419833]
[1757442124721,1.211,4287.9,4287.8,0.002]
[1757442127419,1.211,4287.9,4287.8,2.33419833]
[1757442128118,1.211,4287.9,4287.8,0.002]
[1757442128423,1.211,4287.9,4287.8,2.33419833]
[1757442129619,1.211,4287.9,4287.8,0.002]
[1757442129824,2.11741292,4287.9,4287.8,0.002]
[1757442131056,2.11741292,4287.9,4287.8,2.33419833]
[1757442131757,1.67591292,4287.9,4287.8,2.33419833]
[1757442131962,1.20461292,4287.9,4287.8,0.002]
[1757442132760,7.96912923,4288.0,4287.8,0.002]
[1757442132761,4.08512923,4288.0,4287.9,2.33214393]
[1757442132963,7.85312923,4288.0,4287.9,2.33214393]
[1757442133263,7.85312923,4288.0,4287.9,3.10394393]
[1757442133568,3.96912923,4288.0,4287.9,4.12736338]
[1757442133800,3.96912923,4288.0,4287.9,4.91936338]
[1757442133999,7.85312923,4288.0,4287.9,4.91936338]
[1757442135701,7.85312923,4288.0,4287.9,7.91936338]
[1757442135914,6.06312923,4288.0,4287.9,7.91936338]
[1757442141354,2.17912923,4288.0,4287.9,7.91936338]
[1757442150339,0.001,4288.3,4288.2,3.12398078]
[1757442150574,0.001,4288.3,4288.2,4.39392024]
[1757442150873,0.001,4288.3,4288.2,5.76132024]
[1757442156493,0.001,4288.3,4288.2,5.28172024]
[1757442157576,0.001,4288.3,4288.2,4.82612024]
[1757442157884,0.001,4288.3,4288.2,4.50992024]
[1757442158284,0.001,4288.3,4288.2,4.79512024]
[1757442159884,0.001,4288.3,4288.2,4.50992024]
[1757442162086,0.3056,4288.3,4288.2,4.50992024]
[1757442162898,0.001,4288.3,4288.2,4.50992024]
[1757442163694,0.001,4288.3,4288.2,4.79512024]
[1757442163899,0.001,4288.3,4288.2,4.50992024]
[1757442164571,0.7862,4288.3,4288.2,3.23998078]
[1757442164806,1.2433,4288.3,4288.2,2.44798078]
[1757442165305,4.6692,4288.3,4288.2,2.44798078]
[1757442166279,5.1263,4288.3,4288.2,0.116]
[1757442166618,5.63893,4288.3,4288.0,0.002]
[1757442167411,7.97086461,4288.3,4288.0,0.002]
[1757442167578,5.63893,4288.3,4288.0,0.002]
[1757442176544,4.70123,4288.3,4288.0,0.002]
[1757442176744,0.9377,4288.2,4288.0,2.33404444]
[1757442176947,4.1876,4288.1,4288.0,2.33404444]
[1757442177994,3.883,4288.1,4288.0,6.55114444]
[1757442178195,3.883,4288.1,4288.0,6.66714444]
[1757442179328,3.883,4288.1,4288.0,6.19634444]
[1757442180518,3.883,4288.1,4288.0,5.73524444]
[1757442182453,3.883,4288.1,4288.0,5.45004444]
[1757442183463,3.883,4288.1,4288.0,5.74124444]
[1757442185560,0.001,4288.3,4288.2,3.12398078]
[1757442185723,0.001,4288.3,4288.2,6.14730058]
[1757442185901,0.001,4288.3,4288.2,7.49988078]
[1757442186304,0.001,4288.3,4288.2,8.19954599]
[1757442190085,0.001,4288.3,4288.2,12.08254599]
[1757442190270,0.001,4288.3,4288.2,13.60966743]
[1757442192198,0.001,4288.3,4288.2,9.72666743]
[1757442192400,0.001,4288.3,4288.2,13.60866743]
[1757442206049,0.001,4288.3,4288.2,8.46676743]
[1757442206354,0.001,4288.3,4288.2,12.63896743]
[1757442206851,0.001,4288.3,4288.2,13.10996743]
[1757442208950,0.001,4288.3,4288.2,9.22896743]
[1757442209167,0.001,4288.3,4288.2,13.10996743]
[1757442209871,0.001,4288.3,4288.2,12.63896743]
[1757442210264,0.001,4288.3,4288.2,12.34776743]
[1757442210580,0.001,4288.3,4288.2,8.46676743]
[1757442210884,0.2927,4288.3,4288.2,8.46676743]
[1757442211036,0.7497,4288.3,4288.2,12.34776743]
[1757442211541,0.7497,4288.3,4288.2,13.60766743]
[1757442211542,0.001,4288.3,4288.2,13.60766743]
[1757442215271,0.001,4288.3,4288.2,15.27775527]
[1757442217201,0.001,4288.3,4288.2,13.60766743]
[1757442220408,0.001,4288.3,4288.2,13.10996743]
[1757442223758,0.001,4288.3,4288.2,12.34776743]
[1757442223964,0.3131,4288.3,4288.2,12.34776743]
[1757442224174,0.001,4288.3,4288.2,12.34776743]
[1757442224471,0.001,4288.3,4288.2,12.65486743]
[1757442225384,0.3131,4288.3,4288.2,8.46676743]
[1757442225639,0.7971,4288.3,4288.2,12.34776743]
[1757442225929,1.2684,4288.3,4288.2,12.34776743]
[1757442226295,0.3131,4288.3,4288.2,12.34776743]
[1757442228525,0.3131,4288.3,4288.2,8.46676743]
[1757442228728,0.3131,4288.3,4288.2,12.34676743]
[1757442229029,0.001,4288.3,4288.2,15.24091274]
[1757442229895,0.001,4288.3,4288.2,14.76501274]
[1757442231946,0.3131,4288.3,4288.2,14.01611274]
[1757442232110,0.3131,4288.3,4288.2,10.13611274]
[1757442232310,0.3131,4288.3,4288.2,14.01611274]
[1757442232609,0.001,4288.3,4288.2,14.76501274]